bitfinex-derivatives/quotes_ETHF0:USTF0_20240910
["timestamp","ask_amount","ask_price","bid_price","bid_amount"]
[1725987477836,4.1,2341.2,2340.7,21.4]
[1725987478038,0.42715,2341.0,2340.7,21.4]
[1725987478241,0.42715,2341.0,2340.9,0.42716]
[1725987478638,0.42715,2341.0,2340.7,21.4]
[1725987478639,0.42715,2341.0,2340.8,0.42716]
[1725987479042,0.42715,2341.0,2340.7,21.4]
[1725987479837,0.42715,2341.0,2340.9,0.42716]
[1725987480241,0.42715,2341.0,2340.7,21.4]
[1725987480242,0.42716,2340.9,2340.8,0.42717]
[1725987480433,6.84552941,2341.2,2340.7,21.61449056]
[1725987480434,0.42716,2341.0,2340.7,21.61449056]
[1725987480847,0.42716,2341.0,2340.8,0.42716]
[1725987481140,0.42716,2340.9,2340.8,0.42716]
[1725987481346,0.42714,2341.1,2341.0,0.42713]
[1725987481546,0.42714,2341.1,2340.7,21.60910532]
[1725987481547,4.1,2341.2,2340.8,0.4014]
[1725987481741,0.42714,2341.1,2341.0,0.42714]
[1725987481946,0.42713,2341.1,2340.8,1.46935]
[1725987482149,0.42713,2341.1,2341.0,0.42713]
[1725987482542,2.87485941,2341.2,2341.1,0.42712]
[1725987482743,0.79771,2341.2,2341.1,0.42712]
[1725987482952,0.3706,2341.2,2341.1,0.42712]
[1725987483139,0.3862,2341.3,2341.2,0.42711]
[1725987483537,0.81329,2341.3,2341.2,0.42711]
[1725987483935,0.3862,2341.3,2341.2,0.42711]
[1725987484547,2.06394941,2341.3,2341.2,0.42711]
[1725987485044,0.42713,2341.2,2341.1,0.42712]
[1725987485247,0.42713,2341.1,2341.0,0.42713]
[1725987486547,1.22252,2341.2,2341.1,0.42712]
[1725987487051,0.42713,2341.1,2341.0,0.42713]
[1725987487246,2.10560345,2341.1,2341.0,1.0899168]
[1725987487445,0.42713,2341.1,2341.0,1.0899168]
[1725987487752,0.42715,2341.0,2340.9,0.42715]
[1725987487952,2.1065396,2341.0,2340.9,0.66299079]
[1725987488146,2.66787485,2341.0,2340.9,0.66299079]
[1725987488857,0.42716,2340.9,2340.8,0.42716]
[1725987489063,0.81366,2340.9,2340.8,0.42716]
[1725987489259,2.49371568,2340.9,2340.8,1.09050749]
[1725987489559,0.81366,2340.9,2340.8,1.09050749]
[1725987489763,3.05376304,2340.9,2340.8,1.09049562]
[1725987490649,3.05376304,2340.9,2340.8,0.66333562]
[1725987491052,0.81366,2340.9,2340.8,1.09051562]
[1725987491248,7.3259504,2340.9,2340.8,1.09051562]
[1725987491953,3.0539504,2340.9,2340.8,1.09051562]
[1725987492846,0.81366,2340.9,2340.8,0.42718]
[1725987493046,0.4272,2340.8,2340.7,0.42719]
[1725987493251,0.7953,2340.8,2340.7,1.09091749]
[1725987493455,3.435508,2340.8,2340.7,1.09091749]
[1725987493952,3.435508,2340.8,2340.7,0.66372749]
[1725987494253,3.435508,2340.8,2340.7,1.09092749]
[1725987494860,1.49525,2340.6,2340.5,21.4]
[1725987495072,0.42725,2340.5,2340.4,0.42724]
[1725987495261,3.04582136,2340.5,2340.4,0.42724]
[1725987495563,3.04582136,2340.5,2340.4,21.82724]
[1725987495771,3.04582136,2340.5,2340.4,0.42724]
[1725987496058,0.80595,2340.5,2340.4,0.42724]
[1725987496265,2.05743509,2340.5,2340.4,0.42724]
[1725987496763,2.48466509,2340.5,2340.4,1.09121588]
[1725987496961,0.80593,2340.5,2340.4,0.42724]
[1725987497665,2.48466509,2340.5,2340.4,0.42724]
[1725987497863,0.80593,2340.5,2340.4,1.09123229]
[1725987498161,0.80593,2340.5,2340.4,0.42724]
[1725987498367,0.3787,2340.5,2340.4,0.42724]
[1725987499966,0.80593,2340.5,2340.4,0.42724]
[1725987500263,0.42725,2340.4,2340.3,0.42726]
[1725987500461,0.42727,2340.3,2339.8,6.37042363]
[1725987500767,0.42729,2340.2,2340.1,0.42729]
[1725987502464,3.52817509,2340.4,2340.2,0.42728]
[1725987502465,0.42728,2340.3,2340.2,0.42728]
[1725987502764,2.88729509,2340.4,2340.3,0.42727]
[1725987502972,1.20856,2340.4,2340.3,0.42727]
[1725987503262,0.42728,2340.3,2340.2,0.42728]
[1725987503669,1.20857,2340.4,2340.3,0.42727]
[1725987503863,0.42727,2340.4,2340.3,0.42727]
[1725987505464,1.67873509,2340.5,2340.0,0.4021]
[1725987505465,2.74682509,2340.5,2340.0,0.4021]
[1725987505766,0.42728,2340.3,2340.2,0.42727]
[1725987506464,0.42732,2340.1,2340.0,0.42731]
[1725987506661,0.42732,2340.0,2339.9,0.42733]
[1725987507269,0.42732,2340.0,2339.9,21.82733]
[1725987507869,2.10602509,2340.3,2340.2,0.42729]
[1725987508070,0.42729,2340.2,2340.1,0.42729]
[1725987509871,0.42732,2340.1,2340.0,0.42731]
[1725987510080,1.20082,2340.1,2340.0,0.42731]
[1725987511375,0.42732,2340.0,2339.9,21.82733]
[1725987511677,0.81362,2340.0,2339.9,21.82733]
[1725987512765,0.3863,2340.0,2339.9,21.82733]
[1725987513680,0.81362,2340.0,2339.9,21.82733]
[1725987515274,0.81362,2340.0,2339.7,6.00275]
[1725987515275,1.45462,2340.0,2339.7,5.36167]
[1725987515475,0.81364,2340.0,2339.7,0.7393]
[1725987515771,0.81364,2340.0,2339.9,0.42734]
[1725987516778,0.42734,2340.0,2339.9,0.42734]
[1725987516975,1.06823,2340.2,2339.9,0.42734]
[1725987516976,0.3736,2340.2,2340.1,0.42731]
[1725987517170,1.67873509,2340.3,2340.2,0.42728]
[1725987517171,0.42728,2340.3,2340.2,0.42728]
[1725987519972,0.3736,2340.4,2340.3,0.42727]
[1725987520778,1.19745,2340.5,2340.4,0.42725]
[1725987521075,0.42725,2340.5,2340.4,0.42725]
[1725987525470,0.42726,2340.4,2340.3,0.42726]
[1725987533385,1.67873509,2340.4,2340.3,0.42726]
[1725987533586,2.10598509,2340.4,2340.3,0.42726]
[1725987534791,1.67873509,2340.4,2340.3,2.56362]
[1725987534999,1.67873509,2340.7,2340.6,0.42721]
[1725987535791,0.42718,2340.8,2340.7,0.4272]
[1725987536293,2.66704136,2340.9,2340.8,0.42718]
[1725987537493,2.23987136,2340.9,2340.8,4.69918]
[1725987537792,2.62707136,2341.0,2340.9,0.42716]
[1725987538387,2.23987136,2341.0,2340.9,1.96716]
[1725987538695,2.23987136,2341.0,2340.9,2.74046]
[1725987539293,3.05470136,2341.1,2340.9,2.74046]
[1725987539899,2.62757136,2341.1,2341.0,0.42714]
[1725987540200,2.23744388,2341.2,2341.1,0.42712]
[1725987540388,2.60534388,2341.3,2341.2,0.42711]
[1725987541094,0.3679,2341.3,2341.2,0.42711]
[1725987541694,2.04524655,2341.3,2341.2,0.42711]
[1725987541895,2.47233655,2341.3,2341.1,21.82711]
[1725987542094,1.67734655,2341.2,2341.1,21.82711]
[1725987542694,1.67734655,2341.2,2341.0,1.54]
[1725987542695,2.47233655,2341.3,2341.2,0.42711]
[1725987542896,0.42717,2340.9,2340.7,0.42719]
[1725987543095,1.1425,2340.8,2340.7,0.42719]
[1725987543291,1.1425,2340.8,2340.7,0.4272]
[1725987543593,1.1425,2340.8,2340.6,0.4272]
[1725987543796,1.56969,2340.8,2340.5,1.54]
[1725987543987,1.56969,2340.8,2340.6,0.4272]
[1725987544294,1.56969,2340.8,2340.7,0.4272]
[1725987544497,1.1425,2340.8,2340.6,0.4272]
[1725987544702,1.56969,2340.8,2340.7,0.4272]
[1725987544993,3.75047,2340.8,2340.4,21.82725]
[1725987545194,1.96723,2340.6,2340.4,0.42725]
[1725987545389,0.42723,2340.5,2340.3,0.42726]
[1725987545590,0.7739,2340.4,2340.3,0.42726]
[1725987545784,1.1417,2340.4,2340.3,0.42726]
[1725987546492,1.1417,2340.4,2340.2,21.4]
[1725987546697,1.1417,2340.4,2340.1,3.33]
[1725987546890,1.56895,2340.4,2340.2,0.42727]
[1725987547293,1.1417,2340.4,2340.2,0.42727]
[1725987547493,1.56896,2340.4,2340.1,24.73]
[1725987547903,1.56896,2340.4,2340.2,0.42728]
[1725987548098,1.56896,2340.4,2340.1,21.8273]
[1725987548592,4.4717,2340.4,2340.1,21.4]
[1725987548793,0.42727,2340.3,2340.0,0.42731]
[1725987548997,0.42727,2340.3,2340.1,0.4273]
[1725987549195,0.42727,2340.3,2340.0,0.42731]
[1725987549597,0.42727,2340.3,2340.1,0.4273]
[1725987550501,1.67732252,2340.3,2340.2,0.42729]
[1725987550703,2.81902252,2340.4,2340.1,0.42729]
[1725987550998,3.24628252,2340.4,2340.1,0.42729]
[1725987551198,0.42727,2340.3,2340.1,0.42729]
[1725987551898,0.42727,2340.3,2339.9,24.73]
[1725987551899,3.24628252,2340.4,2340.2,0.42729]
[1725987552100,0.42727,2340.3,2340.2,0.42729]
[1725987552302,0.7554,2340.4,2340.3,0.42727]
[1725987552597,1.18265,2340.4,2340.3,0.42727]
[1725987553101,0.7554,2340.4,2340.3,0.42727]
[1725987553301,1.18265,2340.4,2340.3,0.42727]
[1725987553802,0.7554,2340.4,2340.3,0.42727]
[1725987560191,1.18265,2340.4,2340.3,0.42727]
[1725987561195,0.7554,2340.4,2340.3,0.42727]
[1725987562403,2.43358322,2340.4,2340.3,0.42727]
[1725987562902,2.86083322,2340.4,2340.3,0.42727]
[1725987565608,2.43358322,2340.4,2340.3,0.42727]
[1725987566106,0.7554,2340.4,2340.3,0.42727]
[1725987566302,1.18265,2340.4,2340.3,0.42727]
[1725987566505,2.86083322,2340.4,2340.3,0.42727]
[1725987568812,1.18265,2340.4,2340.3,0.42727]
[1725987569007,2.86083322,2340.4,2340.3,0.42727]
[1725987569407,1.18265,2340.4,2340.3,0.42727]
[1725987569808,2.86083322,2340.4,2340.3,0.42727]
[1725987574012,0.42727,2340.3,2340.2,0.81107]
[1725987574216,0.42727,2340.3,2340.2,0.42727]
[1725987574715,2.86085322,2340.4,2340.2,0.42727]
[1725987574908,0.42727,2340.3,2340.1,0.369]
[1725987575109,0.42729,2340.2,2340.1,0.42729]
[1725987575314,0.42732,2340.1,2339.9,0.42734]
[1725987575607,0.3771,2340.0,2339.9,0.42734]
[1725987575817,0.7709,2340.0,2339.9,1.0911827]
[1725987576814,0.7709,2340.0,2339.9,0.42734]
[1725987577004,0.42735,2339.9,2339.8,0.42736]
[1725987577212,5.27327763,2339.9,2339.8,0.66396825]
[1725987577406,0.4274,2339.6,2339.4,0.52742]
[1725987577608,0.4274,2339.6,2339.4,21.82742]
[1725987577609,0.7973,2339.5,2339.4,21.82742]
[1725987577915,0.7973,2339.5,2339.4,22.4918058]
[1725987578101,0.7973,2339.5,2339.4,21.82742]
[1725987579113,0.7973,2339.5,2339.4,21.4]
[1725987579310,0.7973,2339.5,2339.3,4.62244]
[1725987579311,1.22472,2339.5,2339.3,4.62244]
[1725987579509,1.22472,2339.5,2339.2,1.96746]
[1725987579815,1.22472,2339.5,2339.0,21.4]
[1725987579816,0.42749,2339.1,2339.0,21.4]
[1725987580116,1.9675,2339.1,2338.8,4.195]
[1725987580411,1.9675,2339.1,2338.6,1.96757]
[1725987580412,1.54581,2339.0,2338.6,1.96757]
[1725987581007,1.1183,2339.0,2338.7,0.42756]
[1725987581409,1.1183,2339.0,2338.7,1.54]
[1725987581712,1.1183,2339.0,2338.8,0.42754]
[1725987581910,1.1183,2339.0,2338.7,1.96756]
[1725987582108,1.1183,2339.0,2338.7,0.42756]
[1725987583909,0.42753,2338.9,2338.6,0.21465914]
[1725987584410,0.42753,2338.9,2338.5,22.19979]
[1725987584611,0.42755,2338.8,2338.5,21.7722]
[1725987584910,0.42755,2338.8,2338.4,0.4276]
[1725987585308,0.42755,2338.8,2338.4,21.8276]
[1725987585509,3.76756,2338.7,2338.4,21.4]
[1725987585710,3.76756,2338.7,2338.4,21.82761]
[1725987585918,0.3967,2338.6,2338.4,21.82761]
[1725987586111,0.82428,2338.6,2338.4,21.4]
[1725987586317,0.3812,2338.5,2338.4,21.82762]
[1725987587109,0.3658,2339.0,2338.6,0.42756]
[1725987587407,11.56222279,2338.9,2338.6,0.42756]
[1725987592119,11.56222279,2338.9,2338.4,24.74]
[1725987592320,11.56222279,2338.9,2338.6,0.42756]
[1725987593118,11.56222279,2338.9,2338.7,0.42756]
[1725987593519,15.83822279,2338.9,2338.7,0.42756]
[1725987595820,0.42754,2338.8,2338.6,0.42757]
[1725987596015,0.42754,2338.8,2338.4,24.74]
[1725987596016,14.47469279,2338.9,2338.5,0.42759]
[1725987596226,0.42758,2338.6,2338.5,0.42759]
[1725987596528,15.54352279,2338.9,2338.5,0.42759]
[1725987596823,0.42756,2338.7,2338.6,0.42758]
[1725987598226,0.42755,2338.8,2338.7,0.42755]
[1725987598418,11.13469279,2338.9,2338.4,21.4]
[1725987598620,0.42757,2338.7,2338.6,0.42757]
[1725987598926,15.54354279,2338.9,2338.5,0.42759]
[1725987599127,0.3925,2338.6,2338.5,0.42759]
[1725987600424,11.13469279,2338.9,2338.7,0.42755]
[1725987600626,11.56222279,2338.9,2338.7,0.42755]
[1725987600921,0.42754,2338.8,2338.7,0.42756]
[1725987601123,0.42757,2338.7,2338.5,0.42758]
[1725987601834,0.42755,2338.8,2338.4,21.4]
[1725987602030,0.42756,2338.7,2338.5,0.42758]
[1725987602530,12.67469279,2338.9,2338.7,0.42755]
[1725987602735,12.67469279,2338.9,2338.8,0.42754]
[1725987602736,11.13469279,2338.9,2338.8,0.42754]
[1725987602936,13.10223279,2338.9,2338.7,0.42755]
[1725987603234,0.42754,2338.8,2338.7,0.42755]
[1725987603529,0.42754,2338.8,2338.6,0.42757]
[1725987603734,1.96754,2338.8,2338.6,0.42757]
[1725987603938,1.96754,2338.8,2338.7,0.42756]
[1725987604327,5.816,2338.8,2338.4,21.4]
[1725987604635,1.96759,2338.6,2338.4,22.32761]
[1725987604938,1.54,2338.6,2338.4,22.32761]
[1725987605231,1.96758,2338.6,2338.4,21.9]
[1725987605437,0.7589,2338.6,2338.5,0.4276]
[1725987605622,0.3812,2338.9,2338.6,0.42758]
[1725987605623,0.80874,2338.9,2338.6,0.42758]
[1725987605826,0.80874,2338.9,2338.8,0.42754]
[1725987605827,0.3812,2338.9,2338.8,0.42754]
[1725987606025,0.7589,2339.0,2338.8,0.42753]
[1725987606229,2.2989,2339.0,2338.8,0.42753]
[1725987606427,2.689,2339.0,2338.8,0.42753]
[1725987606840,3.11651,2339.0,2338.8,0.42753]
[1725987607133,3.11651,2339.0,2338.5,0.42759]
[1725987607134,0.42755,2338.8,2338.5,0.42759]
[1725987607336,1.54,2338.6,2338.5,0.42759]
[1725987607533,1.149,2339.0,2338.6,0.42757]
[1725987607748,0.42754,2338.8,2338.6,0.42757]
[1725987608053,1.96754,2338.9,2338.6,0.42757]
[1725987608947,1.96753,2338.9,2338.6,0.42757]
[1725987609247,3.11652,2339.0,2338.5,1.54]
[1725987609549,2.689,2339.0,2338.6,0.3722]
[1725987609750,2.689,2339.0,2338.8,0.42754]
[1725987610152,1.54,2339.2,2339.0,0.42749]
[1725987610346,0.766,2339.3,2338.7,0.7507]
[1725987610541,10.65581715,2339.3,2339.2,0.42747]
[1725987610851,0.42741,2339.6,2339.3,0.42745]
[1725987611150,0.42741,2339.6,2339.1,3.34]
[1725987611151,10.65581715,2339.7,2339.2,0.42746]
[1725987611360,0.42742,2339.5,2339.2,0.42746]
[1725987611854,0.4274,2339.6,2339.3,0.42745]
[1725987612055,1.1449,2339.8,2339.1,4.0811]
[1725987612262,5.00851816,2340.2,2339.3,3.34]
[1725987612550,0.3938,2340.2,2339.9,0.42733]
[1725987612751,0.3938,2340.2,2340.0,21.4]
[1725987613352,0.82127,2340.4,2340.0,21.82732]
[1725987613555,0.394,2340.4,2340.0,21.4]
[1725987613761,0.80722,2340.6,2340.2,0.42728]
[1725987613959,0.80722,2340.6,2340.3,0.42727]
[1725987613960,0.38,2340.6,2340.3,0.42727]
[1725987614150,10.55938768,2340.5,2340.2,0.42728]
[1725987614461,0.394,2340.7,2340.6,0.42721]
[1725987614664,1.19686,2340.9,2340.4,0.42724]
[1725987614955,3.7672,2340.7,2340.3,0.3646]
[1725987615150,3.34,2340.4,2340.0,25.695]
[1725987615346,1.19887,2340.3,2340.0,21.4]
[1725987615950,0.7716,2340.3,2340.0,21.4]
[1725987616156,0.7716,2340.3,2339.9,0.81764]
[1725987616859,0.7716,2340.3,2340.0,0.42732]
[1725987617362,3.34,2340.5,2340.1,0.42729]
[1725987617661,3.76724,2340.5,2339.9,0.3903]
[1725987617959,0.3916,2340.4,2340.1,0.4273]
[1725987618552,3.34,2340.3,2339.8,0.2147053]
[1725987618857,0.42735,2339.9,2339.6,4.195]
[1725987619061,3.34,2340.0,2339.6,0.4274]
[1725987619062,0.3787,2339.8,2339.6,0.4274]
[1725987620054,0.3787,2339.8,2339.7,0.42738]
[1725987620256,4.168,2340.2,2339.4,24.74]
[1725987620559,0.42731,2340.1,2339.4,24.74]
[1725987620949,0.42731,2340.1,2339.7,0.42737]
[1725987621558,4.5467,2340.2,2339.4,24.74]
[1725987621758,0.7794,2340.2,2339.6,3.34]
[1725987621959,4.1194,2340.2,2339.7,0.42737]
[1725987622155,3.34,2340.0,2339.4,21.4]
[1725987622357,0.42736,2339.9,2339.5,0.4274]
[1725987622659,0.42735,2339.9,2339.5,0.4274]
[1725987622863,0.3679,2339.8,2339.4,21.4]
[1725987623055,0.3679,2339.8,2339.5,0.42741]
[1725987623255,3.34,2339.6,2339.1,4.295]
[1725987623452,3.34,2339.6,2339.0,0.7562]
[1725987623857,0.42742,2339.5,2339.2,0.42746]
[1725987624055,0.42742,2339.5,2339.1,0.42748]
[1725987624461,0.3745,2339.4,2339.2,0.42747]
[1725987625460,0.3745,2339.4,2339.3,0.42745]
[1725987625660,0.42741,2339.6,2339.3,0.42745]
[1725987625863,1.1757,2339.7,2339.0,25.4962]
[1725987626060,0.42741,2339.6,2339.3,0.42744]
[1725987626564,0.42742,2339.5,2339.3,0.42744]
[1725987626972,0.42741,2339.6,2339.3,0.42744]
[1725987627263,1.1757,2339.7,2339.4,0.42743]
[1725987627264,1.60309,2339.7,2339.4,0.42743]
[1725987627461,0.4274,2339.6,2339.4,0.42743]
[1725987628364,1.20218,2339.7,2339.5,0.42741]
[1725987628562,0.42736,2339.9,2339.2,3.34]
[1725987628866,1.20703,2340.0,2339.7,0.42737]
[1725987629169,0.42735,2339.9,2339.7,0.42737]
[1725987631158,0.42736,2339.8,2339.6,0.42739]
[1725987632064,1.06836,2339.9,2339.2,4.411]
[1725987632262,1.06836,2339.9,2339.3,0.42744]
[1725987632263,0.42742,2339.5,2339.3,0.42744]
[1725987634766,0.81572,2339.5,2339.3,0.42744]
[1725987635368,0.42746,2339.3,2339.0,22.1999]
[1725987635563,0.42749,2339.2,2339.0,21.7979]
[1725987635765,0.79458,2339.2,2339.0,22.2254]
[1725987635967,0.3671,2339.2,2339.0,0.4275]
[1725987636165,0.42749,2339.1,2339.0,0.4275]
[1725987636365,0.79458,2339.2,2339.1,0.42749]
[1725987636760,0.7712,2339.5,2338.9,4.40879]
[1725987636761,0.42745,2339.3,2338.9,4.40879]
[1725987636961,0.42745,2339.3,2339.2,0.42747]
[1725987639178,0.42749,2339.1,2339.0,0.42749]
[1725987639877,0.42749,2339.1,2339.0,4.70269]
[1725987640172,0.42746,2339.3,2339.2,0.42747]
[1725987640368,0.42747,2339.2,2339.1,0.42748]
[1725987640882,0.42743,2339.4,2339.3,0.42745]
[1725987641069,1.1544,2339.5,2339.2,0.3992]
[1725987641268,0.4274,2339.6,2339.5,0.42741]
[1725987641466,0.3701,2339.8,2339.6,0.42738]
[1725987641770,3.34,2340.1,2339.4,1.06859]
[1725987641973,3.34,2340.1,2339.9,0.42734]
[1725987642179,3.34,2340.1,2339.8,0.42735]
[1725987642378,0.42732,2340.0,2339.9,0.42733]
[1725987642676,0.42732,2340.0,2339.8,0.42735]
[1725987642975,0.747,2340.2,2339.9,0.42734]
[1725987643478,0.42734,2340.0,2339.8,0.42735]
[1725987644270,0.747,2340.2,2339.7,0.42737]
[1725987644477,0.42735,2339.9,2339.7,0.42737]
[1725987644875,0.42735,2339.9,2339.8,0.42736]
[1725987645076,0.42733,2340.0,2339.8,0.42735]
[1725987645278,0.42734,2339.9,2339.8,0.42735]
[1725987645977,3.76732,2340.1,2339.6,0.3992]
[1725987646274,6.07662816,2340.5,2340.1,0.42731]
[1725987646474,6.82722816,2340.5,2340.1,0.42731]
[1725987646667,15.99464422,2340.5,2340.1,0.42731]
[1725987646871,15.99464422,2340.5,2340.1,21.82731]
[1725987647074,0.42729,2340.2,2340.1,21.4]
[1725987647980,4.70089,2340.2,2340.1,21.4]
[1725987648179,5.09509,2340.2,2340.1,21.4]
[1725987648386,0.42733,2340.0,2339.6,0.3992]
[1725987648581,0.42736,2339.8,2339.5,0.3868]
[1725987648785,0.42737,2339.8,2339.6,0.42738]
[1725987648981,0.42737,2339.8,2339.6,0.4274]
[1725987649180,1.19785,2339.9,2339.7,0.42738]
[1725987649381,0.42736,2339.8,2339.6,0.42739]
[1725987649681,0.7705,2339.9,2339.5,21.7868]
[1725987649877,0.42737,2339.8,2339.7,0.42737]
[1725987650383,0.42736,2339.8,2339.7,0.42737]
[1725987652884,0.42738,2339.7,2339.6,0.42738]
[1725987653983,0.42737,2339.8,2339.7,0.42737]
[1725987655582,0.42739,2339.7,2339.6,0.42739]
[1725987656492,0.4274,2339.6,2339.5,0.81421]
[1725987657185,0.42739,2339.7,2339.6,0.42738]
[1725987657590,0.42737,2339.8,2339.7,0.42737]
[1725987657977,1.19785,2339.9,2339.8,0.42736]
[1725987658182,0.7705,2339.9,2339.8,0.42736]
[1725987658381,0.42734,2340.0,2339.9,0.42734]
[1725987661284,2.09585816,2340.0,2339.9,0.42734]
[1725987661895,1.66851816,2340.0,2339.5,5.89815897]
[1725987662194,2.09585816,2340.0,2339.6,0.66338662]
[1725987662389,2.09585816,2340.0,2339.8,0.42734]
[1725987662584,0.42734,2339.9,2339.5,4.79533]
[1725987662785,2.09584816,2340.0,2339.9,0.42734]
[1725987664495,1.66851816,2340.0,2339.9,5.7693]
[1725987664697,2.59219089,2340.2,2339.9,5.34196]
[1725987664698,2.09580816,2340.2,2339.9,5.34196]
[1725987664894,2.22469089,2340.3,2340.2,0.42729]
[1725987665093,2.10578683,2340.4,2340.3,0.42727]
[1725987666197,0.42728,2340.3,2340.2,0.42728]
[1725987666598,2.10579683,2340.4,2340.3,0.42727]
[1725987667495,0.42726,2340.4,2340.3,0.42727]
[1725987668100,0.42728,2340.3,2340.2,0.42728]
[1725987669403,0.4273,2340.2,2340.1,0.4273]
[1725987669604,0.4273,2340.2,2339.8,0.2094637]
[1725987669605,1.67853683,2340.2,2339.6,0.7818]
[1725987669795,0.42735,2339.9,2339.8,0.42735]
[1725987670102,0.42735,2339.9,2339.6,0.7818]
[1725987670291,0.3973,2339.9,2339.6,0.7818]
[1725987670602,0.42739,2339.7,2339.5,0.42741]
[1725987670800,0.385,2339.6,2339.5,0.42741]
[1725987671495,0.385,2339.6,2339.5,1.09132145]
[1725987673092,0.3679,2339.7,2339.6,0.4274]
[1725987673298,2.04643683,2339.7,2339.6,0.4274]
[1725987673498,0.3679,2339.7,2339.6,0.4274]
[1725987673701,2.04643683,2339.7,2339.6,0.4274]
[1725987673901,0.3679,2339.7,2339.6,0.4274]
[1725987680011,0.3723,2339.8,2339.7,0.42738]
[1725987680214,0.7648,2339.8,2339.7,0.42738]
[1725987680616,1.19218,2339.8,2339.7,0.42738]
[1725987681016,0.42739,2339.7,2339.6,0.42739]
[1725987681511,0.42742,2339.5,2339.4,0.42741]
[1725987681716,0.42742,2339.5,2339.4,1.09189279]
[1725987682816,0.42742,2339.5,2339.4,0.42741]
[1725987683108,0.42742,2339.5,2339.4,1.09197081]
[1725987683514,0.42742,2339.5,2339.4,1.59197081]
[1725987683911,0.42742,2339.5,2339.4,1.16456081]
[1725987684114,6.51450683,2339.5,2339.4,0.5]
[1725987684707,10.78890683,2339.5,2339.4,0.5]
[1725987685308,2.10595683,2339.5,2339.4,0.5]
[1725987685504,2.10594683,2339.6,2339.5,0.42742]
[1725987687008,0.42742,2339.5,2339.4,0.92742]
[1725987687904,2.10594683,2339.6,2339.5,0.42742]
[1725987688108,0.42742,2339.5,2339.4,0.92742]
[1725987688304,2.10594683,2339.6,2339.5,0.42742]
[1725987689618,0.42742,2339.5,2339.4,0.92743]
[1725987690306,0.42742,2339.5,2339.4,1.59213082]
[1725987690511,0.42742,2339.5,2339.4,0.92743]
[1725987690708,25.57088829,2339.5,2339.1,1.10282897]
[1725987690913,0.42747,2339.2,2339.0,1.65424345]
[1725987691217,3.34,2339.3,2338.9,21.4]
[1725987691419,3.34,2339.3,2338.9,21.82752]
[1725987691420,0.42748,2339.2,2338.9,21.82752]
[1725987692015,0.42748,2339.2,2338.9,21.82751]
[1725987693521,1.56734,2339.4,2338.9,21.4]
[1725987693716,1.56734,2339.4,2339.1,0.42748]
[1725987694712,1.1399,2339.4,2339.1,0.42748]
[1725987694907,0.7482,2339.4,2339.2,0.42747]
[1725987695105,2.42677332,2339.4,2339.1,0.42747]
[1725987695508,1.67857332,2339.4,2339.1,4.2752]
[1725987695810,1.67857332,2339.4,2339.3,0.42745]
[1725987696030,1.67857332,2339.4,2339.3,7.09192003]
[1725987696328,1.67857332,2339.4,2339.3,11.75932003]
[1725987696916,1.67857332,2339.4,2339.3,13.32138116]
[1725987697318,2.23809776,2339.6,2339.5,0.42742]
[1725987697520,2.20307109,2339.6,2339.5,17.33641737]
[1725987697714,2.7976222,2339.7,2339.6,0.4274]
[1725987698024,2.7976222,2339.7,2339.6,28.32784737]
[1725987698217,2.7976222,2339.7,2339.6,34.72054737]
[1725987698413,2.7976222,2339.7,2339.6,37.1168408]
[1725987698819,2.4382222,2339.7,2339.6,37.1168408]
[1725987699019,3.35714664,2340.0,2339.9,0.42734]
[1725987699221,3.35714664,2340.0,2339.9,5.14594128]
[1725987699421,3.35714664,2340.0,2339.9,14.92031066]
[1725987699725,3.35714664,2340.0,2339.9,36.32031066]
[1725987700022,3.35714664,2340.0,2339.9,22.49181003]
[1725987700330,0.38,2340.0,2339.9,22.04271106]
[1725987701926,0.38,2340.0,2339.9,21.82734]
[1725987702517,0.38,2340.0,2339.9,21.4]
[1725987702721,4.6536,2340.0,2339.6,0.42739]
[1725987702918,0.42737,2339.8,2339.6,0.42739]
[1725987703127,0.42737,2339.8,2339.7,21.4]
[1725987703431,0.7426,2339.9,2339.7,21.82738]
[1725987703626,0.42736,2339.8,2339.7,21.4]
[1725987703928,1.16995,2339.9,2339.7,21.82738]
[1725987704129,0.7426,2339.9,2339.7,21.82738]
[1725987704320,0.42736,2339.8,2339.7,21.82738]
[1725987704519,1.16995,2339.9,2339.7,21.82738]
[1725987706324,1.16995,2339.9,2339.8,0.42736]
[1725987706631,1.16994,2339.9,2339.8,0.42736]
[1725987706931,0.38,2340.0,2339.9,0.42734]
[1725987707129,0.38,2340.0,2339.9,4.70094]
[1725987707437,0.38,2340.0,2339.9,5.08914]
[1725987710135,0.80028,2340.3,2340.2,0.42729]
[1725987710324,1.18338,2340.3,2340.2,0.42729]
[1725987711127,0.42729,2340.2,2340.1,0.4273]
[1725987711530,1.18338,2340.3,2340.1,0.4273]
[1725987711830,1.18338,2340.3,2340.2,0.42729]
[1725987712026,0.3831,2340.3,2340.2,0.42729]
[1725987712530,0.3721,2340.7,2340.6,0.42721]
[1725987712726,0.4002,2340.8,2340.7,0.4272]
[1725987713228,0.4002,2340.8,2340.7,4.6992]
[1725987713535,0.4002,2340.8,2340.7,8.0392]
[1725987713833,0.81993,2341.1,2340.8,0.42717]
[1725987714421,0.81993,2341.1,2340.9,21.82716]
[1725987714623,0.3928,2341.1,2341.0,0.42714]
[1725987715535,0.3928,2341.1,2340.9,21.4]
[1725987715724,0.3928,2341.1,2340.9,21.82715]
[1725987716932,0.81992,2341.1,2340.9,21.82715]
[1725987717236,0.3928,2341.1,2340.8,0.42717]